[Event "32nd NATO Chess Championship"]
[Site "Tartu, Estonia"]
[Date "2022.06.30"]
[Round "6.20"]
[White "Wendler, Edward"]
[Black "Cheung, Jan"]
[Result "0-1"]
[TimeControl "90 min + 30 sec increment from move one"]
[WhiteFideId "30956277"]
[BlackFideId "1010735"]
[WhiteElo "1839"]
[BlackElo "1964"]

1. e4 {[%clk 01:30:57]} {[%emt 00:00:02]} c5 {[%clk 01:30:52]} {[%emt
00:00:09]} 2. Nf3 {[%clk 01:31:15]} {[%emt 00:00:12]} e6 {[%clk 01:31:14]}
{[%emt 00:00:07]} 3. d4 {[%clk 01:31:30]} {[%emt 00:00:16]} cxd4 {[%clk
01:31:36]} {[%emt 00:00:08]} 4. Nxd4 {[%clk 01:31:52]} {[%emt 00:00:07]} Nc6
{[%clk 01:32:00]} {[%emt 00:00:06]} 5. Nxc6 {[%clk 01:32:04]} {[%emt 00:00:18]}
bxc6 {[%clk 01:27:59]} {[%emt 00:04:32]} 6. Bd3 {[%clk 01:31:54]} {[%emt
00:00:38]} Nf6 {[%clk 01:27:59]} {[%emt 00:00:32]} 7. O-O {[%clk 01:31:28]}
{[%emt 00:00:55]} d5 {[%clk 01:27:54]} {[%emt 00:00:35]} 8. e5 {[%clk
01:30:09]} {[%emt 00:01:50]} Nd7 {[%clk 01:28:11]} {[%emt 00:00:13]} 9. Re1
{[%clk 01:27:55]} {[%emt 00:02:44]} Qc7 {[%clk 01:20:32]} {[%emt 00:08:09]} 10.
f4 {[%clk 01:18:27]} {[%emt 00:09:58]} g6 {[%clk 01:18:48]} {[%emt 00:02:14]}
11. c3 {[%clk 01:15:40]} {[%emt 00:03:17]} Be7 {[%clk 01:17:50]} {[%emt
00:01:27]} 12. Nd2 {[%clk 01:10:55]} {[%emt 00:05:15]} O-O {[%clk 01:13:07]}
{[%emt 00:05:13]} 13. Nf3 {[%clk 01:04:08]} {[%emt 00:07:17]} Re8 {[%clk
01:13:04]} {[%emt 00:00:34]} 14. Qc2 {[%clk 01:00:00]} {[%emt 00:04:38]} Bb7
{[%clk 01:06:42]} {[%emt 00:06:52]} 15. g4 {[%clk 00:50:48]} {[%emt 00:09:41]}
Nc5 {[%clk 01:04:29]} {[%emt 00:02:43]} 16. f5 {[%clk 00:45:23]} {[%emt
00:05:55]} Nxd3 {[%clk 01:02:42]} {[%emt 00:02:18]} 17. Qxd3 {[%clk 00:45:44]}
{[%emt 00:00:09]} c5 {[%clk 01:01:03]} {[%emt 00:02:08]} 18. f6 {[%clk
00:37:52]} {[%emt 00:08:22]} Bf8 {[%clk 00:56:35]} {[%emt 00:04:59]} 19. Ng5
{[%clk 00:23:50]} {[%emt 00:14:31]} h6 {[%clk 00:53:03]} {[%emt 00:04:02]} 20.
Qh3 {[%clk 00:10:31]} {[%emt 00:13:49]} hxg5 {[%clk 00:49:30]} {[%emt
00:04:03]} 21. Bxg5 {[%clk 00:10:58]} {[%emt 00:00:03]} d4 {[%clk 00:43:00]}
{[%emt 00:07:01]} 22. Bh6 {[%clk 00:09:14]} {[%emt 00:02:13]} Qc6 {[%clk
00:43:06]} {[%emt 00:00:23]} 23. Bxf8 {[%clk 00:09:33]} {[%emt 00:00:12]} Rxf8
{[%clk 00:40:47]} {[%emt 00:02:49]} 24. cxd4 {[%clk 00:09:52]} {[%emt
00:00:11]} Qf3 {[%clk 00:39:15]} {[%emt 00:02:01]} 25. Re3 {[%clk 00:08:11]}
{[%emt 00:02:12]} Qxh3 {[%clk 00:39:34]} {[%emt 00:00:11]} 26. Rxh3 {[%clk
00:08:39]} {[%emt 00:00:02]} cxd4 {[%clk 00:39:23]} {[%emt 00:00:41]} 27. Rb3
{[%clk 00:02:30]} {[%emt 00:06:38]} Be4 {[%clk 00:38:05]} {[%emt 00:01:49]} 28.
Rb4 {[%clk 00:01:02]} {[%emt 00:01:59]} Rfd8 {[%clk 00:37:41]} {[%emt
00:00:53]} 29. Rd1 {[%clk 00:01:04]} {[%emt 00:00:28]} g5 {[%clk 00:36:36]}
{[%emt 00:01:35]} 30. Rbxd4 {[%clk 00:00:37]} {[%emt 00:00:57]} Rxd4 {[%clk
00:37:01]} {[%emt 00:00:07]} 31. Rxd4 {[%clk 00:01:05]} {[%emt 00:00:01]} Bd5
{[%clk 00:37:11]} {[%emt 00:00:17]} 32. a3 {[%clk 00:01:21]} {[%emt 00:00:17]}
Rc8 {[%clk 00:36:03]} {[%emt 00:01:37]} 33. Ra4 {[%clk 00:01:45]} {[%emt
00:00:07]} Rc4 {[%clk 00:34:29]} {[%emt 00:02:03]} 34. Rxa7 {[%clk 00:01:36]}
{[%emt 00:00:39]} Rxg4+ {[%clk 00:34:52]} {[%emt 00:00:06]} 35. Kf1 {[%clk
00:01:54]} {[%emt 00:00:12]} Re4 {[%clk 00:33:52]} {[%emt 00:01:31]} 36. Rc7
{[%clk 00:01:03]} {[%emt 00:01:22]} Rxe5 {[%clk 00:34:02]} {[%emt 00:00:20]} 37.
b4 {[%clk 00:01:18]} {[%emt 00:00:14]} Re3 {[%clk 00:33:11]} {[%emt 00:01:21]}
38. a4 {[%clk 00:01:09]} {[%emt 00:00:39]} Rb3 {[%clk 00:31:02]} {[%emt
00:02:39]} 39. b5 {[%clk 00:00:44]} {[%emt 00:00:55]} Rb4 {[%clk 00:30:11]}
{[%emt 00:01:20]} 40. Ra7 {[%clk 00:01:12]} {[%emt 00:00:03]} Bb3 {[%clk
00:29:38]} {[%emt 00:01:03]} 41. b6 {[%clk 00:00:33]} {[%emt 00:01:10]} Rxb6
{[%clk 00:29:13]} {[%emt 00:00:55]} 42. Ra5 {[%clk 00:00:51]} {[%emt 00:00:11]}
Bd5 {[%clk 00:28:58]} {[%emt 00:00:45]} 43. Rc5 {[%clk 00:00:47]} {[%emt
00:00:35]} Kh7 {[%clk 00:28:45]} {[%emt 00:00:42]} 0-1

[Event "32nd NATO Chess Championship"]
[Site "Tartu, Estonia"]
[Date "2022.06.30"]
[Round "6.21"]
[White "Keough, Robert"]
[Black "Voroblievas, Arturas"]
[Result "1-0"]
[TimeControl "90 min + 30 sec increment from move one"]
[WhiteFideId "410667"]
[BlackFideId "12803430"]
[WhiteElo "2074"]
[BlackElo "1740"]

1. e4 {[%clk 01:30:20]} {[%emt 00:00:39]} e5 {[%clk 01:30:52]} {[%emt
00:00:08]} 2. Nf3 {[%clk 01:30:40]} {[%emt 00:00:11]} Nc6 {[%clk 01:31:17]}
{[%emt 00:00:04]} 3. Bc4 {[%clk 01:31:06]} {[%emt 00:00:04]} Nf6 {[%clk
01:31:38]} {[%emt 00:00:09]} 4. d3 {[%clk 01:31:32]} {[%emt 00:00:05]} Bc5
{[%clk 01:31:52]} {[%emt 00:00:16]} 5. c3 {[%clk 01:31:54]} {[%emt 00:00:08]}
d6 {[%clk 01:32:01]} {[%emt 00:00:20]} 6. O-O {[%clk 01:32:11]} {[%emt
00:00:13]} a6 {[%clk 01:32:16]} {[%emt 00:00:16]} 7. a4 {[%clk 01:28:56]}
{[%emt 00:03:45]} h6 {[%clk 01:30:39]} {[%emt 00:02:06]} 8. Re1 {[%clk
01:28:23]} {[%emt 00:01:03]} O-O {[%clk 01:30:34]} {[%emt 00:00:35]} 9. Nbd2
{[%clk 01:26:51]} {[%emt 00:02:01]} Ne7 {[%clk 01:30:32]} {[%emt 00:00:32]} 10.
Nf1 {[%clk 01:26:44]} {[%emt 00:00:38]} Ng6 {[%clk 01:30:43]} {[%emt 00:00:20]}
11. b4 {[%clk 01:25:11]} {[%emt 00:02:03]} Ba7 {[%clk 01:30:32]} {[%emt
00:00:40]} 12. d4 {[%clk 01:24:55]} {[%emt 00:00:47]} exd4 {[%clk 01:29:40]}
{[%emt 00:01:22]} 13. cxd4 {[%clk 01:24:51]} {[%emt 00:00:33]} d5 {[%clk
01:27:11]} {[%emt 00:03:00]} 14. exd5 {[%clk 01:22:58]} {[%emt 00:02:22]} Nxd5
{[%clk 01:27:18]} {[%emt 00:00:23]} 15. Qb3 {[%clk 01:21:30]} {[%emt 00:01:58]}
Be6 {[%clk 01:23:42]} {[%emt 00:04:06]} 16. Ne3 {[%clk 01:20:34]} {[%emt
00:01:27]} c6 {[%clk 01:23:12]} {[%emt 00:00:59]} 17. b5 {[%clk 01:20:09]}
{[%emt 00:00:55]} Bb8 {[%clk 01:15:52]} {[%emt 00:07:49]} 18. Ba3 {[%clk
01:14:27]} {[%emt 00:06:13]} Re8 {[%clk 01:12:01]} {[%emt 00:04:21]} 19. Nxd5
{[%clk 01:12:59]} {[%emt 00:01:57]} cxd5 {[%clk 01:11:54]} {[%emt 00:00:38]} 20.
Bxd5 {[%clk 01:11:14]} {[%emt 00:02:16]} Nf4 {[%clk 01:02:13]} {[%emt
00:10:08]} 21. Bxe6 {[%clk 01:10:50]} {[%emt 00:00:56]} Rxe6 {[%clk 00:59:21]}
{[%emt 00:03:21]} 22. Rxe6 {[%clk 01:10:55]} {[%emt 00:00:25]} Nxe6 {[%clk
00:59:43]} {[%emt 00:00:08]} 23. d5 {[%clk 01:11:14]} {[%emt 00:00:12]} Nf4
{[%clk 00:58:32]} {[%emt 00:01:41]} 24. d6 {[%clk 01:09:17]} {[%emt 00:02:27]}
axb5 {[%clk 00:56:46]} {[%emt 00:02:16]} 25. Qxb5 {[%clk 01:05:14]} {[%emt
00:04:33]} Ra5 {[%clk 00:47:55]} {[%emt 00:09:21]} 26. Qb4 {[%clk 01:03:16]}
{[%emt 00:02:24]} Rf5 {[%clk 00:25:27]} {[%emt 00:23:01]} 27. Qe4 {[%clk
00:59:43]} {[%emt 00:04:02]} Qf6 {[%clk 00:21:40]} {[%emt 00:04:19]} 28. Rd1
{[%clk 00:57:07]} {[%emt 00:03:05]} Ne6 {[%clk 00:13:15]} {[%emt 00:08:55]} 29.
Qxb7 {[%clk 00:56:38]} {[%emt 00:01:00]} Bxd6 {[%clk 00:12:57]} {[%emt
00:00:47]} 30. Bxd6 {[%clk 00:56:34]} {[%emt 00:00:35]} g5 {[%clk 00:11:18]}
{[%emt 00:02:09]} 31. Qb8+ {[%clk 00:56:10]} {[%emt 00:00:53]} Kh7 {[%clk
00:11:36]} {[%emt 00:00:13]} 32. Be5 {[%clk 00:56:28]} {[%emt 00:00:12]} Qe7
{[%clk 00:11:25]} {[%emt 00:00:41]} 33. Qb1 {[%clk 00:53:54]} {[%emt 00:03:03]}
Kg6 {[%clk 00:10:55]} {[%emt 00:01:00]} 34. g4 {[%clk 00:54:11]} {[%emt
00:00:14]} Ng7 {[%clk 00:11:00]} {[%emt 00:00:23]} 35. Bxg7 {[%clk 00:54:35]}
{[%emt 00:00:08]} Kxg7 {[%clk 00:11:17]} {[%emt 00:00:13]} 36. Qxf5 {[%clk
00:54:52]} {[%emt 00:00:13]} Qe2 {[%clk 00:11:26]} {[%emt 00:00:21]} 37. Qe5+
{[%clk 00:55:10]} {[%emt 00:00:12]} Qxe5 {[%clk 00:11:48]} {[%emt 00:00:08]} 38.
Nxe5 {[%clk 00:55:31]} {[%emt 00:00:08]} 1-0

[Event "32nd NATO Chess Championship"]
[Site "Tartu, Estonia"]
[Date "2022.06.30"]
[Round "6.22"]
[White "Giedraitis, Mingaudas"]
[Black "Sauer, Marko"]
[Result "1/2-1/2"]
[TimeControl "90 min + 30 sec increment from move one"]
[WhiteFideId "12808806"]
[BlackFideId "1270766"]
[WhiteElo "1846"]
[BlackElo "2065"]

1. d4 {[%clk 01:30:57]} {[%emt 00:00:03]} Nf6 {[%clk 01:30:49]} {[%emt
00:00:11]} 2. Bf4 {[%clk 01:31:21]} {[%emt 00:00:06]} e6 {[%clk 01:30:45]}
{[%emt 00:00:35]} 3. e3 {[%clk 01:31:46]} {[%emt 00:00:04]} b6 {[%clk
01:30:14]} {[%emt 00:01:02]} 4. Nf3 {[%clk 01:31:45]} {[%emt 00:00:30]} Bb7
{[%clk 01:30:03]} {[%emt 00:00:42]} 5. Nbd2 {[%clk 01:31:32]} {[%emt 00:00:43]}
Be7 {[%clk 01:28:51]} {[%emt 00:01:41]} 6. h3 {[%clk 01:31:19]} {[%emt
00:00:43]} a6 {[%clk 01:25:28]} {[%emt 00:03:53]} 7. c3 {[%clk 01:28:24]}
{[%emt 00:03:25]} d5 {[%clk 01:23:03]} {[%emt 00:02:56]} 8. Bd3 {[%clk
01:28:35]} {[%emt 00:00:18]} Nbd7 {[%clk 01:22:04]} {[%emt 00:01:30]} 9. O-O
{[%clk 01:27:34]} {[%emt 00:01:31]} Ne4 {[%clk 01:16:48]} {[%emt 00:05:46]} 10.
c4 {[%clk 01:20:51]} {[%emt 00:07:13]} c5 {[%clk 01:11:59]} {[%emt 00:05:19]}
11. Bh2 {[%clk 00:59:28]} {[%emt 00:21:52]} O-O {[%clk 00:57:10]} {[%emt
00:15:20]} 12. cxd5 {[%clk 00:50:02]} {[%emt 00:09:56]} exd5 {[%clk 00:56:11]}
{[%emt 00:01:28]} 13. Ne5 {[%clk 00:49:06]} {[%emt 00:01:26]} cxd4 {[%clk
00:47:59]} {[%emt 00:08:41]} 14. exd4 {[%clk 00:48:30]} {[%emt 00:01:07]} Nxe5
{[%clk 00:44:35]} {[%emt 00:03:54]} 15. Bxe5 {[%clk 00:47:51]} {[%emt
00:01:09]} Nxd2 {[%clk 00:35:45]} {[%emt 00:09:21]} 16. Qxd2 {[%clk 00:48:16]}
{[%emt 00:00:04]} Rc8 {[%clk 00:34:28]} {[%emt 00:01:47]} 17. Qf4 {[%clk
00:42:06]} {[%emt 00:06:40]} Rc6 {[%clk 00:24:39]} {[%emt 00:10:20]} 18. Rac1
{[%clk 00:36:37]} {[%emt 00:05:57]} Bg5 {[%clk 00:17:25]} {[%emt 00:07:45]} 19.
Qg3 {[%clk 00:35:16]} {[%emt 00:01:50]} Bf6 {[%clk 00:13:51]} {[%emt 00:04:05]}
20. Rxc6 {[%clk 00:29:21]} {[%emt 00:06:25]} Bxe5 {[%clk 00:11:52]} {[%emt
00:02:29]} 21. Qxe5 {[%clk 00:28:07]} {[%emt 00:01:44]} Bxc6 {[%clk 00:12:16]}
{[%emt 00:00:07]} 22. Bxa6 {[%clk 00:25:12]} {[%emt 00:03:24]} Re8 {[%clk
00:11:20]} {[%emt 00:01:26]} 23. Qg3 {[%clk 00:25:10]} {[%emt 00:00:30]} b5
{[%clk 00:11:23]} {[%emt 00:00:29]} 24. a4 {[%clk 00:19:56]} {[%emt 00:05:44]}
bxa4 {[%clk 00:11:18]} {[%emt 00:00:35]} 25. Rc1 {[%clk 00:19:13]} {[%emt
00:01:12]} Qb6 {[%clk 00:09:51]} {[%emt 00:01:59]} 26. Qc3 {[%clk 00:18:22]}
{[%emt 00:01:20]} Re6 {[%clk 00:07:49]} {[%emt 00:02:33]} 27. Bc8 {[%clk
00:15:14]} {[%emt 00:03:37]} Rd6 {[%clk 00:06:56]} {[%emt 00:01:23]} 28. Bg4
{[%clk 00:14:04]} {[%emt 00:01:40]} g6 {[%clk 00:06:55]} {[%emt 00:00:31]} 29.
Qa3 {[%clk 00:13:11]} {[%emt 00:01:23]} Bb5 {[%clk 00:06:36]} {[%emt 00:00:49]}
30. Rc5 {[%clk 00:13:13]} {[%emt 00:00:26]} Bc4 {[%clk 00:06:32]} {[%emt
00:00:36]} 31. Qxa4 {[%clk 00:13:09]} {[%emt 00:00:34]} Qxb2 {[%clk 00:06:40]}
{[%emt 00:00:22]} 32. Qe8+ {[%clk 00:13:22]} {[%emt 00:00:17]} Kg7 {[%clk
00:07:00]} {[%emt 00:00:10]} 33. Qe5+ {[%clk 00:13:36]} {[%emt 00:00:15]} Rf6
{[%clk 00:07:22]} {[%emt 00:00:10]} 34. Bf3 {[%clk 00:10:04]} {[%emt 00:04:01]}
Qc1+ {[%clk 00:06:36]} {[%emt 00:01:16]} 35. Kh2 {[%clk 00:10:14]} {[%emt
00:00:20]} Qf4+ {[%clk 00:06:36]} {[%emt 00:00:30]} 36. Qxf4 {[%clk 00:10:20]}
{[%emt 00:00:24]} Rxf4 {[%clk 00:07:05]} 37. Bxd5 {[%clk 00:10:15]} {[%emt
00:00:34]} 1/2-1/2

[Event "32nd NATO Chess Championship"]
[Site "Tartu, Estonia"]
[Date "2022.06.30"]
[Round "6.24"]
[White "Ntalampiras, Spyros"]
[Black "Hernandez, Albert"]
[Result "1/2-1/2"]
[TimeControl "90 min + 30 sec increment from move one"]
[WhiteFideId "4227778"]
[BlackFideId "2075407"]
[WhiteElo "1815"]
[BlackElo "2012"]

1. e4 {[%clk 01:30:56]} {[%emt 00:00:02]} e6 {[%clk 01:30:56]} {[%emt
00:00:05]} 2. d4 {[%clk 01:31:22]} {[%emt 00:00:04]} d5 {[%clk 01:31:23]}
{[%emt 00:00:04]} 3. Nd2 {[%clk 01:31:41]} {[%emt 00:00:10]} Nf6 {[%clk
01:31:46]} {[%emt 00:00:08]} 4. e5 {[%clk 01:32:04]} {[%emt 00:00:06]} Nfd7
{[%clk 01:32:11]} {[%emt 00:00:06]} 5. Bd3 {[%clk 01:32:16]} {[%emt 00:00:18]}
c5 {[%clk 01:32:33]} {[%emt 00:00:07]} 6. c3 {[%clk 01:32:42]} {[%emt
00:00:04]} Nc6 {[%clk 01:32:20]} {[%emt 00:00:44]} 7. Ne2 {[%clk 01:32:48]}
{[%emt 00:00:23]} cxd4 {[%clk 01:32:36]} {[%emt 00:00:14]} 8. cxd4 {[%clk
01:33:14]} {[%emt 00:00:04]} f6 {[%clk 01:32:58]} {[%emt 00:00:09]} 9. exf6
{[%clk 01:32:20]} {[%emt 00:01:24]} Nxf6 {[%clk 01:33:16]} {[%emt 00:00:12]} 10.
O-O {[%clk 01:32:43]} {[%emt 00:00:07]} Bd6 {[%clk 01:33:39]} {[%emt 00:00:06]}
11. Nf3 {[%clk 01:32:45]} {[%emt 00:00:27]} O-O {[%clk 01:33:55]} {[%emt
00:00:15]} 12. Bf4 {[%clk 01:30:40]} {[%emt 00:02:35]} Nh5 {[%clk 01:32:24]}
{[%emt 00:02:01]} 13. Bxd6 {[%clk 01:23:31]} {[%emt 00:07:39]} Qxd6 {[%clk
01:32:43]} {[%emt 00:00:11]} 14. Ng3 {[%clk 01:23:18]} {[%emt 00:00:42]} Nf4
{[%clk 01:27:29]} {[%emt 00:05:45]} 15. Re1 {[%clk 01:20:19]} {[%emt 00:03:28]}
Nxd3 {[%clk 01:26:45]} {[%emt 00:01:16]} 16. Qxd3 {[%clk 01:20:31]} {[%emt
00:00:17]} Bd7 {[%clk 01:26:50]} {[%emt 00:00:25]} 17. a3 {[%clk 01:18:00]}
{[%emt 00:03:02]} g6 {[%clk 01:25:09]} {[%emt 00:02:10]} 18. Ne5 {[%clk
01:16:33]} {[%emt 00:01:57]} Nxe5 {[%clk 01:25:27]} {[%emt 00:00:13]} 19. Rxe5
{[%clk 01:16:43]} {[%emt 00:00:19]} Qb6 {[%clk 01:25:12]} {[%emt 00:00:45]} 20.
Qd2 {[%clk 01:16:07]} {[%emt 00:01:05]} Rac8 {[%clk 01:23:52]} {[%emt
00:01:51]} 21. Ne2 {[%clk 01:10:42]} {[%emt 00:05:54]} Rc4 {[%clk 01:18:58]}
{[%emt 00:05:25]} 22. Rc1 {[%clk 01:09:27]} {[%emt 00:01:44]} Rfc8 {[%clk
01:18:32]} {[%emt 00:00:56]} 23. Rxc4 {[%clk 01:09:40]} {[%emt 00:00:18]} Rxc4
{[%clk 01:18:56]} {[%emt 00:00:06]} 24. h4 {[%clk 01:09:03]} {[%emt 00:01:07]}
Qd8 {[%clk 01:13:36]} {[%emt 00:05:51]} 25. g3 {[%clk 01:03:46]} {[%emt
00:05:45]} 1/2-1/2

[Event "32nd NATO Chess Championship"]
[Site "Tartu, Estonia"]
[Date "2022.06.30"]
[Round "6.25"]
[White "Aagaard, Gert"]
[Black "Muld, Tarmo"]
[Result "1-0"]
[TimeControl "90 min + 30 sec increment from move one"]
[WhiteFideId "1427024"]
[BlackFideId "4519469"]
[WhiteElo "1979"]
[BlackElo "1783"]

1. d4 {[%clk 01:30:53]} {[%emt 00:00:04]} d5 {[%clk 01:30:30]} {[%emt
00:00:33]} 2. c4 {[%clk 01:31:21]} {[%emt 00:00:02]} e6 {[%clk 01:29:55]}
{[%emt 00:01:05]} 3. a3 {[%clk 01:31:15]} {[%emt 00:00:37]} Nf6 {[%clk
01:29:14]} {[%emt 00:01:11]} 4. Bg5 {[%clk 01:31:39]} {[%emt 00:00:06]} c6
{[%clk 01:29:14]} {[%emt 00:00:31]} 5. e3 {[%clk 01:32:00]} {[%emt 00:00:09]}
Be7 {[%clk 01:29:28]} {[%emt 00:00:16]} 6. Nd2 {[%clk 01:32:04]} {[%emt
00:00:26]} Nbd7 {[%clk 01:28:28]} {[%emt 00:01:31]} 7. Ngf3 {[%clk 01:31:58]}
{[%emt 00:00:35]} h6 {[%clk 01:28:28]} {[%emt 00:00:30]} 8. Bh4 {[%clk
01:32:16]} {[%emt 00:00:13]} O-O {[%clk 01:27:34]} {[%emt 00:01:24]} 9. Bd3
{[%clk 01:32:40]} {[%emt 00:00:05]} Re8 {[%clk 01:27:34]} {[%emt 00:00:31]} 10.
O-O {[%clk 01:31:43]} {[%emt 00:01:25]} Nh5 {[%clk 01:26:53]} {[%emt 00:01:12]}
11. Ne5 {[%clk 01:28:10]} {[%emt 00:04:04]} Nxe5 {[%clk 01:22:26]} {[%emt
00:04:57]} 12. Bxe7 {[%clk 01:27:03]} {[%emt 00:01:38]} Qxe7 {[%clk 01:22:27]}
{[%emt 00:00:29]} 13. dxe5 {[%clk 01:27:27]} {[%emt 00:00:06]} g6 {[%clk
01:22:37]} {[%emt 00:00:20]} 14. Qe2 {[%clk 01:26:03]} {[%emt 00:01:51]} Ng7
{[%clk 01:22:34]} {[%emt 00:00:35]} 15. Rad1 {[%clk 01:24:35]} {[%emt
00:01:58]} Bd7 {[%clk 01:22:32]} {[%emt 00:00:33]} 16. Bb1 {[%clk 01:23:52]}
{[%emt 00:01:11]} Rac8 {[%clk 01:20:49]} {[%emt 00:02:14]} 17. Qd3 {[%clk
01:23:22]} {[%emt 00:01:00]} Red8 {[%clk 01:20:19]} {[%emt 00:01:00]} 18. Qc3
{[%clk 01:18:56]} {[%emt 00:04:53]} c5 {[%clk 01:18:47]} {[%emt 00:02:05]} 19.
f4 {[%clk 01:18:41]} {[%emt 00:00:45]} Bc6 {[%clk 01:17:26]} {[%emt 00:01:50]}
20. Nf3 {[%clk 01:14:54]} {[%emt 00:04:17]} b5 {[%clk 01:15:59]} {[%emt
00:01:57]} 21. b3 {[%clk 01:09:23]} {[%emt 00:06:01]} a6 {[%clk 01:14:17]}
{[%emt 00:02:13]} 22. Qb2 {[%clk 01:06:53]} {[%emt 00:02:59]} bxc4 {[%clk
01:12:51]} {[%emt 00:01:56]} 23. bxc4 {[%clk 01:07:15]} {[%emt 00:00:08]} dxc4
{[%clk 01:13:05]} {[%emt 00:00:16]} 24. e4 {[%clk 01:06:45]} {[%emt 00:01:00]}
Bb5 {[%clk 01:13:10]} {[%emt 00:00:26]} 25. Qc3 {[%clk 01:06:57]} {[%emt
00:00:17]} Rxd1 {[%clk 01:08:41]} {[%emt 00:04:59]} 26. Rxd1 {[%clk 01:07:26]}
{[%emt 00:00:02]} Rd8 {[%emt 00:00:28]} 27. Rxd8+ {[%emt 00:00:14]} Qxd8 {[%clk
01:08:23]} {[%emt 00:00:06]} 28. Bc2 {[%clk 01:07:50]} {[%emt 00:00:06]} Nh5
{[%clk 01:08:11]} {[%emt 00:00:43]} 29. g3 {[%clk 01:05:10]} {[%emt 00:03:10]}
Qd7 {[%clk 01:08:24]} {[%emt 00:00:17]} 30. Kf2 {[%clk 01:05:22]} {[%emt
00:00:17]} Ng7 {[%clk 01:08:38]} {[%emt 00:00:17]} 31. Ke3 {[%clk 01:05:37]}
{[%emt 00:00:15]} Ne8 {[%clk 01:08:35]} {[%emt 00:00:33]} 32. Nd2 {[%clk
01:05:33]} {[%emt 00:00:33]} Qd4+ {[%clk 01:08:38]} {[%emt 00:00:28]} 33. Qxd4
{[%clk 01:05:53]} {[%emt 00:00:10]} cxd4+ {[%clk 01:08:56]} {[%emt 00:00:12]}
34. Kxd4 {[%clk 01:06:17]} {[%emt 00:00:06]} f6 {[%clk 01:08:58]} {[%emt
00:00:28]} 35. a4 {[%clk 01:06:23]} {[%emt 00:00:25]} Bd7 {[%clk 01:07:19]}
{[%emt 00:02:08]} 36. Nxc4 {[%clk 01:05:22]} {[%emt 00:01:30]} f5 {[%clk
01:07:09]} {[%emt 00:00:41]} 37. Kc5 {[%clk 01:04:36]} {[%emt 00:01:15]} g5
{[%clk 01:07:09]} {[%emt 00:00:31]} 38. Nb6 {[%clk 01:04:43]} {[%emt 00:00:22]}
Bxa4 {[%clk 01:06:48]} {[%emt 00:00:53]} 39. Nxa4 {[%clk 01:04:54]} {[%emt
00:00:19]} Kf7 {[%clk 01:06:48]} {[%emt 00:00:30]} 40. exf5 {[%clk 01:04:14]}
{[%emt 00:01:10]} gxf4 {[%clk 01:07:03]} {[%emt 00:00:15]} 41. gxf4 {[%clk
01:04:31]} {[%emt 00:00:14]} exf5 {[%clk 01:07:20]} {[%emt 00:00:13]} 42. Bxf5
{[%clk 01:04:32]} {[%emt 00:00:29]} Ng7 {[%clk 01:07:38]} {[%emt 00:00:12]} 43.
Bg4 {[%clk 01:03:44]} {[%emt 00:01:18]} h5 {[%clk 01:07:56]} {[%emt 00:00:13]}
44. Bh3 {[%clk 01:04:03]} {[%emt 00:00:11]} Ne6+ {[%clk 01:08:06]} {[%emt
00:00:20]} 45. Bxe6+ {[%clk 01:04:26]} {[%emt 00:00:07]} Kxe6 {[%clk 01:08:26]}
{[%emt 00:00:09]} 46. Kb6 {[%clk 01:04:46]} {[%emt 00:00:11]} Kf5 {[%clk
01:08:34]} {[%emt 00:00:10]} 47. Kxa6 {[%clk 01:05:11]} {[%emt 00:00:18]} Kxf4
{[%clk 01:08:56]} {[%emt 00:00:08]} 48. e6 {[%clk 01:05:35]} {[%emt 00:00:05]}
Kg4 {[%clk 01:09:08]} {[%emt 00:00:17]} 49. e7 {[%clk 01:06:00]} {[%emt
00:00:05]} Kh3 {[%clk 01:09:29]} {[%emt 00:00:09]} 50. e8=Q {[%clk 01:06:23]}
{[%emt 00:00:07]} Kxh2 {[%clk 01:09:47]} {[%emt 00:00:13]} 51. Qxh5+ {[%clk
01:06:46]} {[%emt 00:00:08]} 1-0